fUST/lending_fUST_20241015
["ID","MTS","AMOUNT","RATE_DAILY","PERIOD"]
[340276262,1728988107703,-500.0,0.00043835,60]
[340276263,1728988107729,-500.0,0.00043835,60]
[340276264,1728988107754,-500.0,0.00043835,60]
[340276265,1728988107779,-500.0,0.00043835,60]
[340276266,1728988107806,-500.0,0.00043835,60]
[340276267,1728988107830,-503.9484808,0.00043835,60]
[340276268,1728988107855,-650.42,0.00043835,60]
[340276269,1728988107881,-523.67310718,0.00043835,60]
[340276270,1728988107921,-500.0,0.00043835,60]
[340276271,1728988107953,-500.0,0.00043835,60]
[340276272,1728988107980,-500.0,0.00043835,60]
[340276273,1728988108006,-500.0,0.00043835,60]
[340276274,1728988108032,-468.69437173,0.00043835,60]
[340276275,1728988108058,-500.0,0.00043835,60]
[340276276,1728988108084,-530.38203729,0.00043835,60]
[340276277,1728988108112,-500.0,0.00043835,60]
[340276278,1728988108138,-176.44311008,0.00043835,60]
[340276279,1728988108167,-500.0,0.00043835,60]
[340276280,1728988108193,-200.0,0.00043835,7]
[340276281,1728988108219,-527.37351313,0.00043835,60]
[340276282,1728988108247,-500.0,0.00043835,60]
[340276283,1728988108396,-500.0,0.00043835,60]
[340276284,1728988108425,-500.0,0.00043835,60]
[340276285,1728988108453,-551.18284508,0.00043835,60]
[340276286,1728988108481,-500.0,0.00043835,60]
[340276287,1728988108507,-500.0,0.00043835,60]
[340276288,1728988108536,-500.0,0.00043835,60]
[340276289,1728988108570,-522.16134048,0.00043835,60]
[340276290,1728988108596,-528.84447643,0.00043835,60]
[340276291,1728988108622,-500.0,0.00043835,60]
[340276292,1728988108648,-500.0,0.00043835,60]
[340276293,1728988108675,-500.0,0.00043835,60]
[340276294,1728988108703,-500.0,0.00043835,60]
[340276295,1728988108730,-500.0,0.00043835,120]
[340276296,1728988108756,-500.0,0.00043835,60]
[340276297,1728988108783,-177.90831511,0.00043835,60]
[340276298,1728988108812,-500.0,0.00043835,60]
[340276299,1728988108839,-500.0,0.00043835,60]
[340276300,1728988108866,-387.91811245,0.00043835,60]
[340276301,1728988108894,-500.0,0.00043835,60]
[340276302,1728988108923,-260.79804277,0.00043835,60]
[340276303,1728988108949,-500.0,0.00043835,60]
[340276304,1728988108976,-500.0,0.00043835,60]
[340276305,1728988109002,-502.02309099,0.00043835,60]
[340276306,1728988109028,-500.0,0.00043835,60]
[340276307,1728988109054,-378.0313048,0.00043835,60]
[340276308,1728988109081,-500.0,0.00043835,60]
[340276309,1728988109108,-511.8104633,0.00043835,60]
[340276310,1728988109135,-231.72236849,0.00043835,60]
[340276311,1728988109161,-500.0,0.00043835,60]
[340276312,1728988109188,-500.0,0.00043835,60]
[340276313,1728988109215,-511.22169796,0.00043835,60]
[340276314,1728988109241,-511.53145266,0.00043835,60]
[340276315,1728988109271,-539.95452039,0.00043835,60]
[340276316,1728988109298,-513.12025775,0.00043835,60]
[340276317,1728988109324,-513.95747725,0.00043835,60]
[340276318,1728988109355,-500.0,0.00043835,60]
[340276319,1728988109383,-551.5,0.00043835,60]
[340276320,1728988109409,-501.62791459,0.00043835,60]
[340276321,1728988109436,-500.0,0.00043835,60]
[340276322,1728988109463,-501.05571686,0.00043835,60]
[340276323,1728988109490,-500.0,0.00043835,60]
[340276324,1728988109516,-500.0,0.00043835,60]
[340276325,1728988109542,-522.5139264,0.00043835,60]
[340276326,1728988109569,-502.13642199,0.00043835,60]
[340276327,1728988109596,-534.85061152,0.00043835,60]
[340276328,1728988109621,-501.71234975,0.00043835,60]
[340276329,1728988109648,-522.14376033,0.00043835,60]
[340276330,1728988109674,-500.0,0.00043835,60]
[340276331,1728988109701,-500.0,0.00043835,60]
[340276332,1728988109726,-498.59805921,0.00043835,60]
[340276333,1728988109751,-505.4832111,0.00043835,60]
[340276334,1728988109778,-505.17655296,0.00043835,60]
[340276335,1728988109803,-502.54962719,0.00043835,60]
[340276336,1728988109829,-500.0,0.00043835,60]
[340276337,1728988109859,-500.0,0.00043835,60]
[340276338,1728988109885,-517.8179155,0.00043835,60]
[340276339,1728988109910,-500.0,0.00043835,60]
[340276340,1728988109936,-504.3244656,0.00043835,60]
[340276341,1728988109965,-500.0,0.00043835,60]
[340276342,1728988109994,-509.8831369,0.00043835,60]
[340276343,1728988110024,-500.0,0.00043835,60]
[340276344,1728988110051,-500.0,0.00043835,60]
[340276345,1728988110079,-500.0,0.00043835,60]
[340276346,1728988110108,-504.30002421,0.00043835,60]
[340276347,1728988110135,-500.0,0.00043835,60]
[340276348,1728988110161,-500.0,0.00043835,60]
[340276349,1728988110188,-500.0,0.00043835,60]
[340276350,1728988110217,-506.23103284,0.00043835,60]
[340276351,1728988110246,-500.0,0.00043835,60]
[340276352,1728988110274,-172.97622203,0.00043835,60]
[340276353,1728988110430,-350.86428803,0.00043835,60]
[340276354,1728988110465,-500.0,0.00043835,60]
[340276355,1728988110493,-500.0,0.00043835,60]
[340276356,1728988110520,-510.77371921,0.00043835,60]
[340276357,1728988110548,-500.0,0.00043835,60]
[340276358,1728988110576,-502.80694088,0.00043835,60]
[340276359,1728988110608,-500.0,0.00043835,60]
[340276360,1728988110636,-504.00264136,0.00043835,60]
[340276361,1728988110664,-649.21856396,0.00043835,60]
[340276362,1728988110691,-288.36291559,0.00043835,60]
[340276363,1728988110718,-554.77347429,0.00043835,60]
[340276364,1728988110745,-548.24622172,0.00043835,60]
[340276365,1728988110771,-500.0,0.00043835,7]
[340276366,1728988110797,-553.97582592,0.00043835,60]
[340276367,1728988110823,-501.2895794,0.00043835,60]
[340276368,1728988110849,-500.0,0.00043835,60]
[340276369,1728988110875,-527.78698867,0.00043835,60]
[340276370,1728988110902,-500.0,0.00043835,60]
[340276371,1728988110929,-500.0,0.00043835,60]
[340276372,1728988110956,-500.0,0.00043835,60]
[340276373,1728988110984,-500.0,0.00043835,60]
[340276374,1728988111012,-500.0,0.00043835,60]
[340276375,1728988111043,-500.0,0.00043835,60]
[340276376,1728988111073,-500.0,0.00043835,60]
[340276377,1728988111103,-500.0,0.00043835,60]
[340276378,1728988111131,-500.0,0.00043835,60]
[340276379,1728988111161,-500.0,0.00043835,60]
[340276380,1728988111189,-500.0,0.00043835,60]
[340276381,1728988111215,-500.0,0.00043835,60]
[340276382,1728988111244,-519.72950979,0.00043835,60]
[340276383,1728988111272,-500.0,0.00043835,60]
[340276384,1728988111298,-500.0,0.00043835,60]
[340276385,1728988111323,-500.0,0.00043835,60]
[340276386,1728988111354,-500.0,0.00043835,60]
[340276387,1728988111382,-500.0,0.00043835,60]
[340276388,1728988111409,-309.31887074,0.00043835,60]
[340276389,1728988111437,-500.0,0.00043835,60]
[340276390,1728988111464,-500.0,0.00043835,60]
[340276391,1728988111492,-3279.56,0.00043835,60]
[340276392,1728988111518,-506.05644918,0.00043835,60]
[340276393,1728988111545,-162.87040613,0.00043835,60]
[340276394,1728988111572,-500.0,0.00043835,60]
[340276395,1728988111600,-500.0,0.00043835,60]
[340276396,1728988111625,-500.0,0.00043835,60]
[340276397,1728988111650,-519.2621997,0.00043835,60]
[340276398,1728988111675,-526.68006116,0.00043835,60]
[340276399,1728988111701,-500.0,0.00043835,60]
[340276400,1728988111727,-500.0,0.00043835,60]
[340276401,1728988111752,-500.0,0.00043835,30]
[340276402,1728988111782,-500.0,0.00043835,60]
[340276403,1728988111808,-502.88180707,0.00043835,10]
[340276404,1728988111832,-503.27077306,0.00043835,60]
[340276405,1728988111857,-521.35994727,0.00043835,60]
[340276406,1728988111883,-500.0,0.00043835,60]
[340276407,1728988111911,-507.2,0.00043835,60]
[340276408,1728988111939,-500.0,0.00043835,60]
[340276409,1728988111968,-574.82484416,0.00043835,60]
[340276410,1728988111995,-500.0,0.00043835,60]
[340276411,1728988112021,-500.0,0.00043835,60]
[340276412,1728988112047,-541.92334562,0.00043835,60]
[340276413,1728988112075,-500.0,0.00043835,60]
[340276414,1728988112103,-629.40191413,0.00043835,60]
[340276415,1728988112129,-500.87290961,0.00043835,7]
[340276416,1728988112157,-500.0,0.00043835,60]
[340276417,1728988112185,-500.0,0.00043835,60]
[340276418,1728988112212,-500.0,0.00043835,60]
[340276419,1728988112239,-500.0,0.00043835,60]
[340276420,1728988112266,-551.29784485,0.00043835,60]
[340276421,1728988112377,-159.68722267,0.00043835,60]
[340276422,1728988112428,-500.0,0.00043835,60]
[340276423,1728988112454,-500.0,0.00043835,60]
[340276424,1728988112481,-500.0,0.00043835,60]
[340276425,1728988112508,-554.11815626,0.00043835,60]
[340276426,1728988112535,-335.33378663,0.00043835,60]
[340276427,1728988112561,-523.6309779,0.00043835,60]
[340276428,1728988112587,-500.0,0.00043835,60]
[340276429,1728988112617,-500.0,0.00043835,60]
[340276430,1728988112645,-500.0,0.00043835,60]
[340276431,1728988112672,-500.0,0.00043835,60]
[340276432,1728988112700,-253.3206391,0.00043835,60]
[340276433,1728988112727,-513.60665176,0.00043835,60]
[340276434,1728988112754,-506.37071785,0.00043835,60]
[340276435,1728988112782,-500.0,0.00043835,60]
[340276436,1728988112810,-500.0,0.00043835,60]
[340276437,1728988112835,-500.0,0.00043835,60]
[340276438,1728988112862,-509.40690325,0.00043835,60]
[340276439,1728988112889,-500.0,0.00043835,60]
[340276440,1728988112915,-331.06438222,0.00043835,60]
[340276441,1728988112942,-500.0,0.00043835,60]
[340276442,1728988112968,-500.0,0.00043835,60]
[340276443,1728988112996,-500.0,0.00043835,60]
[340276444,1728988113023,-500.0,0.00043835,60]
[340276445,1728988113050,-508.31662092,0.00043835,60]
[340276446,1728988113076,-500.0,0.00043835,60]
[340276447,1728988113102,-500.0,0.00043835,60]
[340276448,1728988113129,-502.55738997,0.00043835,60]
[340276449,1728988113157,-590.06496263,0.00043835,60]
[340276450,1728988113184,-500.0,0.00043835,60]
[340276451,1728988113211,-1050.0,0.00043835,60]
[340276452,1728988113239,-1708.76,0.00043835,60]
[340276453,1728988113266,-500.0,0.00043835,60]
[340276454,1728988113295,-500.0,0.00043835,60]
[340276455,1728988113323,-500.0,0.00043835,60]
[340276456,1728988113354,-500.0,0.00043835,60]
[340276457,1728988113382,-6270.79,0.00043835,60]
[340276458,1728988113410,-548.69720975,0.00043835,60]
[340276459,1728988113436,-500.0,0.00043835,60]
[340276460,1728988113464,-500.0,0.00043835,60]
[340276461,1728988113493,-500.0,0.00043835,60]
[340276462,1728988113523,-527.08883,0.00043835,60]
[340276463,1728988113551,-500.0,0.00043835,60]
[340276464,1728988113579,-414.79846684,0.00043835,60]
[340276465,1728988113607,-500.0,0.00043835,60]
[340276466,1728988113636,-500.0,0.00043835,60]
[340276467,1728988113665,-500.0,0.00043835,60]
[340276468,1728988113694,-521.29008066,0.00043835,60]
[340276469,1728988113722,-558.84421705,0.00043835,60]
[340276470,1728988113750,-500.0,0.00043835,60]
[340276471,1728988113777,-438.35727673,0.00043835,60]
[340276472,1728988113804,-500.0,0.00043835,60]
[340276473,1728988113832,-500.0,0.00043835,60]
[340276474,1728988113859,-511.17261504,0.00043835,60]
[340276475,1728988113887,-500.0,0.00043835,60]
[340276476,1728988113913,-500.0,0.00043835,60]
[340276477,1728988113940,-500.0,0.00043835,60]
[340276478,1728988113966,-178.48283479,0.00043835,60]
[340276479,1728988113995,-500.0,0.00043835,60]
[340276480,1728988114022,-500.0,0.00043835,60]
[340276481,1728988114049,-580.65540738,0.00043835,60]
[340276482,1728988114077,-500.0,0.00043835,60]
[340276483,1728988114106,-500.0,0.00043835,60]
[340276484,1728988114131,-500.0,0.00043835,60]
[340276485,1728988114167,-513.13501298,0.00043835,60]
[340276486,1728988114194,-500.0,0.00043835,60]
[340276487,1728988114317,-500.0,0.00043835,60]
[340276488,1728988114346,-500.0,0.00043835,60]
[340276489,1728988114374,-500.0,0.00043835,60]
[340276490,1728988114402,-500.0,0.00043835,60]
[340276491,1728988114433,-500.0,0.00043835,60]
[340276492,1728988114466,-507.13133318,0.00043835,60]
[340276493,1728988114495,-527.36469172,0.00043835,60]
[340276494,1728988114525,-529.94056548,0.00043835,60]
[340276495,1728988114554,-500.0,0.00043835,60]
[340276496,1728988114582,-500.0,0.00043835,60]
[340276497,1728988114609,-500.0,0.00043835,60]
[340276498,1728988114636,-500.0,0.00043835,60]
[340276499,1728988114664,-647.22,0.00043835,60]
[340276500,1728988114690,-500.0,0.00043835,60]
[340276501,1728988114716,-507.23356782,0.00043835,60]
[340276502,1728988114743,-500.0,0.00043835,60]
[340276503,1728988114768,-500.0,0.00043835,60]
[340276504,1728988114794,-500.0,0.00043835,60]
[340276505,1728988114821,-500.0,0.00043835,60]
[340276506,1728988114847,-501.35646925,0.00043835,60]
[340276507,1728988114873,-500.0,0.00043835,60]
[340276508,1728988114899,-500.0,0.00043835,60]
[340276509,1728988114927,-597.90295845,0.00043835,60]
[340276510,1728988114957,-537.40216268,0.00043835,60]
[340276511,1728988114985,-500.0,0.00043835,60]
[340276512,1728988115017,-505.67303464,0.00043835,60]
[340276513,1728988115046,-502.25743361,0.00043835,60]
[340276514,1728988115075,-553.70553361,0.00043835,60]
[340276515,1728988115101,-503.77476937,0.00043835,60]
[340276516,1728988115128,-506.09533922,0.00043835,60]
[340276517,1728988115155,-500.0,0.00043835,60]
[340276518,1728988115184,-500.0,0.00043835,60]
[340276519,1728988115212,-515.52519338,0.00043835,60]
[340276520,1728988115241,-500.0,0.00043835,60]
[340276521,1728988115269,-500.0,0.00043835,60]
[340276522,1728988115299,-500.0,0.00043835,60]
[340276523,1728988115326,-500.0,0.00043835,60]
[340276524,1728988115358,-500.0,0.00043835,60]
[340276525,1728988115387,-500.0,0.00043835,60]
[340276526,1728988115416,-1328.2,0.00043835,7]
[340276527,1728988115445,-1328.2,0.00043835,7]
[340276528,1728988115472,-1328.2,0.00043835,7]
[340276529,1728988115501,-1328.2,0.00043835,7]
[340276530,1728988115528,-500.0,0.00043835,60]
[340276531,1728988115554,-1328.2,0.00043835,7]
[340276532,1728988115582,-500.0,0.00043835,60]
[340276533,1728988115610,-1328.2,0.00043835,7]
[340276534,1728988115637,-1328.2,0.00043835,7]
[340276535,1728988115663,-1328.2,0.00043835,7]
[340276536,1728988115689,-1328.2,0.00043835,7]
[340276537,1728988115715,-1328.2,0.00043835,7]
[340276538,1728988115744,-1328.2,0.00043835,7]
[340276539,1728988115770,-1328.2,0.00043835,7]
[340276540,1728988115797,-1328.2,0.00043835,7]
[340276541,1728988115822,-174.52509302,0.00043835,60]
[340276542,1728988115849,-1328.2,0.00043835,7]
[340276543,1728988115875,-1328.2,0.00043835,7]
[340276544,1728988115902,-1328.2,0.00043835,7]
[340276545,1728988115929,-1328.2,0.00043835,7]
[340276546,1728988115956,-1328.2,0.00043835,7]
[340276547,1728988115982,-1328.2,0.00043835,7]
[340276548,1728988116007,-1328.2,0.00043835,7]
[340276549,1728988116033,-1328.2,0.00043835,7]
[340276550,1728988116059,-1328.2,0.00043835,7]
[340276551,1728988116175,-1328.2,0.00043835,7]
[340276552,1728988116201,-1328.20184803,0.00043835,7]
[340276553,1728988116228,-500.0,0.00043835,60]
[340276554,1728988116254,-500.0,0.00043835,60]
[340276555,1728988116279,-503.80974714,0.00043835,60]
[340276556,1728988116305,-500.0,0.00043835,60]
[340276557,1728988116339,-500.0,0.00043835,60]
[340276558,1728988116367,-507.13268165,0.00043835,60]
[340276559,1728988116395,-500.0,0.00043835,60]
[340276560,1728988116423,-500.0,0.00043835,60]
[340276561,1728988116451,-500.0,0.00043835,60]
[340276562,1728988116479,-500.0,0.00043835,60]
[340276563,1728988116507,-504.69464055,0.00043835,60]
[340276564,1728988116537,-176.68650772,0.00043835,60]
[340276565,1728988116563,-500.0,0.00043835,60]
[340276566,1728988116592,-512.56952746,0.00043835,60]
[340276567,1728988116623,-163.8154658,0.00043835,60]
[340276568,1728988116653,-504.89147686,0.00043835,60]
[340276569,1728988116681,-1076.09,0.00043835,60]
[340276570,1728988116710,-500.0,0.00043835,60]
[340276571,1728988116737,-500.0,0.00043835,60]
[340276572,1728988116765,-500.0,0.00043835,30]
[340276573,1728988116792,-500.0,0.00043835,60]
[340276574,1728988116821,-500.0,0.00043835,60]
[340276575,1728988116849,-500.0,0.00043835,60]
[340276576,1728988116878,-511.26161321,0.00043835,60]
[340276577,1728988116905,-500.86720783,0.00043835,60]
[340276578,1728988116933,-500.0,0.00043835,60]
[340276579,1728988116960,-500.0,0.00043835,60]
[340276580,1728988116989,-500.0,0.00043835,60]
[340276581,1728988117015,-500.0,0.00043835,60]
[340276582,1728988117041,-505.33667771,0.00043835,60]
[340276583,1728988117069,-500.0,0.00043835,60]
[340276584,1728988117095,-500.0,0.00043835,60]
[340276585,1728988117121,-500.0,0.00043835,60]
[340276586,1728988117146,-500.0,0.00043835,60]
[340276587,1728988117174,-500.0,0.00043835,60]
[340276588,1728988117199,-626.39108621,0.00043835,60]
[340276589,1728988117225,-512.79761847,0.00043835,60]
[340276590,1728988117252,-500.0,0.00043835,60]
[340276591,1728988117279,-974.35,0.00043835,60]
[340276592,1728988117304,-500.0,0.00043835,60]
[340276593,1728988117330,-500.0,0.00043835,60]
[340276594,1728988117362,-500.0,0.00043835,60]
[340276595,1728988117392,-500.76491855,0.00043835,60]
[340276596,1728988117420,-512.58523991,0.00043835,60]
[340276597,1728988117448,-705.08,0.00043835,60]
[340276598,1728988117476,-500.0,0.00043835,60]
[340276599,1728988117502,-500.0,0.00043835,21]
[340276600,1728988117528,-500.0,0.00043835,60]
[340276601,1728988117553,-282.68564342,0.00043835,60]
[340276602,1728988117579,-501.70708888,0.00043835,60]
[340276603,1728988117605,-500.0,0.00043835,60]
[340276604,1728988117631,-500.0,0.00043835,60]
[340276605,1728988117659,-500.0,0.00043835,60]
[340276606,1728988117686,-516.48230266,0.00043835,60]
[340276607,1728988117717,-500.0,0.00043835,60]
[340276608,1728988117743,-514.27154728,0.00043835,60]
[340276609,1728988117769,-510.05775734,0.00043835,60]
[340276610,1728988117798,-500.0,0.00043835,60]
[340276611,1728988117825,-503.01665435,0.00043835,60]
[340276612,1728988117944,-500.0,0.00043835,60]
[340276613,1728988117973,-500.0,0.00043835,60]
[340276614,1728988118000,-500.0,0.00043835,60]
[340276615,1728988118029,-500.0,0.00043835,60]
[340276616,1728988118055,-570.89378424,0.00043835,60]
[340276617,1728988118088,-822.63,0.00043835,60]
[340276618,1728988118116,-500.0,0.00043835,60]
[340276619,1728988118151,-419.90770436,0.00043835,60]
[340276620,1728988118179,-500.0,0.00043835,60]
[340276621,1728988118207,-506.49049533,0.00043835,60]
[340276622,1728988118234,-500.0,0.00043835,60]
[340276623,1728988118261,-500.0,0.00043835,60]
[340276624,1728988118289,-170.98707494,0.00043835,60]
[340276625,1728988118316,-500.0,0.00043835,60]
[340276626,1728988118346,-500.0,0.00043835,60]
[340276627,1728988118375,-500.0,0.00043835,120]
[340276628,1728988118405,-500.0,0.00043835,60]
[340276629,1728988118435,-500.0,0.00043835,60]
[340276630,1728988118462,-500.0,0.00043835,60]
[340276631,1728988118490,-500.0,0.00043835,60]
[340276632,1728988118521,-500.0,0.00043835,60]
[340276633,1728988118548,-500.0,0.00043835,60]
[340276634,1728988118577,-865.95,0.00043835,9]
[340276635,1728988118604,-500.0,0.00043835,60]
[340276636,1728988118631,-500.0,0.00043835,60]
[340276637,1728988118659,-500.0,0.00043835,60]
[340276638,1728988118685,-500.0,0.00043835,60]
[340276639,1728988118712,-500.0,0.00043835,60]
[340276640,1728988118738,-587.77774497,0.00043835,60]
[340276641,1728988118764,-515.54337242,0.00043835,60]
[340276642,1728988118790,-524.7046096,0.00043835,60]
[340276643,1728988118816,-500.0,0.00043835,60]
[340276644,1728988118842,-1118.8211106,0.00043835,60]
[340276645,1728988118871,-425.02455352,0.00043835,60]
[340276646,1728988118900,-330.28489237,0.00043835,60]
[340276647,1728988118925,-500.0,0.00043835,60]
[340276648,1728988118953,-503.42684679,0.00043835,60]
[340276649,1728988118980,-505.7,0.00043835,60]
[340276650,1728988119008,-506.37078192,0.00043835,20]
[340276651,1728988119038,-500.0,0.00043835,60]
[340276652,1728988119065,-158.39315469,0.00043835,60]
[340276653,1728988119091,-506.75513344,0.00043835,60]
[340276654,1728988119117,-500.0,0.00043835,60]
[340276655,1728988119142,-509.9074863,0.00043835,60]
[340276656,1728988119167,-506.68392716,0.00043835,60]
[340276657,1728988119192,-511.94741823,0.00043835,60]
[340276658,1728988119219,-505.69,0.00043835,60]
[340276659,1728988119245,-512.7086461,0.00043835,60]
[340276660,1728988119271,-1000.0,0.00043835,60]
[340276661,1728988119297,-500.0,0.00043835,60]
[340276662,1728988119323,-500.0,0.00043835,60]
[340276663,1728988119354,-360.92494055,0.00043835,60]
[340276664,1728988119381,-500.0,0.00043835,60]
[340276665,1728988119409,-502.70426518,0.00043835,60]
[340276666,1728988119438,-234.71294802,0.00043835,60]
[340276667,1728988119468,-500.0,0.00043835,60]
[340276668,1728988119494,-415.00012535,0.00043835,60]
[340276669,1728988119523,-663.93,0.00043835,60]
[340276670,1728988119551,-500.0,0.00043835,60]
[340276671,1728988119666,-500.0,0.00043835,60]
[340276672,1728988119697,-500.0,0.00043835,60]
[340276673,1728988119726,-500.0,0.00043835,60]
[340276674,1728988119753,-500.0,0.00043835,60]
[340276675,1728988119781,-500.0,0.00043835,60]
[340276676,1728988119809,-500.0,0.00043835,60]
[340276677,1728988119837,-500.0,0.00043835,60]
[340276678,1728988119865,-551.47391568,0.00043835,60]
[340276679,1728988119893,-150.0,0.00043873,10]
[340276680,1728988119921,-150.0,0.00043873,7]
[340276681,1728988119950,-3017.73,0.000439,30]
[340276682,1728988119981,-17737.38,0.000439,30]
[340276683,1728988120010,-6971.9,0.000439,30]
[340276684,1728988120038,-1000.0,0.00043946,10]
[340276685,1728988120070,-5000.0,0.00044,44]
[340276686,1728988120098,-3016.18,0.00044,30]
[340276687,1728988120127,-17728.75,0.00044,30]
[340276688,1728988120156,-6968.65,0.00044,30]
[340276689,1728988120185,-331.90292983,0.000441,120]
[340276690,1728988120212,-156.1,0.0004418,31]
[340276691,1728988120238,-26116.68862107,0.000442,120]
[340276692,1728988120267,-22597.90077862,0.000442,120]
[340276693,1728988123362,193.35505204,0.00025,120]
[340276694,1728988126745,275.53822707,0.00025,120]
[340276695,1728988150349,-236.9,0.0002499,10]
[340276696,1728988150377,-197.41,0.0002499,10]
[340276697,1728988150410,-341.13,0.00038105,10]
[340276698,1728988150441,-284.28,0.00038105,10]
[340276699,1728988150469,-20929.69367172,0.00038115,20]
[340276700,1728988150499,-1173.07074156,0.00043501,28]
[340276701,1728988150528,-500.0,0.00043835,60]
[340276702,1728988150555,-500.0,0.00043835,60]
[340276703,1728988150585,-500.0,0.00043835,60]
[340276704,1728988150713,-500.0,0.00043835,60]
[340276705,1728988150742,-500.0,0.00043835,60]
[340276706,1728988150768,-500.0,0.00043835,60]
[340276707,1728988150795,-227.77260741,0.00043835,60]
[340276708,1728988150825,-500.0,0.00043835,60]
[340276709,1728988150852,-375.58871333,0.00043835,60]
[340276710,1728988150879,-500.0,0.00043835,60]
[340276711,1728988150906,-292.6439746,0.00043835,60]
[340276712,1728988150932,-515.34305999,0.00043835,60]
[340276713,1728988150959,-3518.78784241,0.000442,120]
[340276714,1728988150984,-26116.68862103,0.000442,120]
[340276715,1728988151010,-150.0,0.00044273,10]
[340276716,1728988151035,-150.0,0.00044273,7]
[340276717,1728988151061,-500.0,0.00044273,60]
[340276718,1728988151087,-500.0,0.00044273,60]
[340276719,1728988151113,-500.0,0.00044273,7]
[340276720,1728988151139,-529.92634706,0.00044273,60]
[340276721,1728988151168,-552.75130124,0.00044273,60]
[340276722,1728988151196,-551.47157415,0.00044273,60]
[340276723,1728988151222,-500.0,0.00044273,60]
[340276724,1728988151248,-500.0,0.00044273,60]
[340276725,1728988151274,-515.35697896,0.00044273,60]
[340276726,1728988151299,-294.04752364,0.00044273,60]
[340276727,1728988151325,-598.84836268,0.00044273,60]
[340276728,1728988151353,-500.0,0.00044273,60]
[340276729,1728988151379,-500.0,0.00044273,60]
[340276730,1728988151405,-500.0,0.00044273,60]
[340276731,1728988151432,-500.0,0.00044273,60]
[340276732,1728988151459,-500.0,0.00044273,60]
[340276733,1728988151486,-250.31628849,0.00044273,60]
[340276734,1728988151511,-541.97250179,0.00044273,60]
[340276735,1728988151539,-500.0,0.00044273,60]
[340276736,1728988151565,-547.1263985,0.00044273,60]
[340276737,1728988151592,-500.0,0.00044273,60]
[340276738,1728988151620,-500.0,0.00044273,60]
[340276739,1728988151646,-464.35129454,0.00044273,60]
[340276740,1728988151671,-971.57,0.00044273,60]
[340276741,1728988151698,-1047.13,0.00044273,60]
[340276742,1728988151723,-500.0,0.00044273,60]
[340276743,1728988151748,-507.22821507,0.00044273,60]
[340276744,1728988151773,-500.0,0.00044273,60]
[340276745,1728988151798,-500.0,0.00044273,60]
[340276746,1728988151825,-500.0,0.00044273,60]
[340276747,1728988151853,-500.0,0.00044273,60]
[340276748,1728988151880,-546.83236215,0.00044273,60]
[340276749,1728988151906,-500.0,0.00044273,60]
[340276750,1728988151933,-500.0,0.00044273,60]
[340276751,1728988151961,-553.0927087,0.00044273,60]
[340276752,1728988151987,-500.0,0.00044273,60]
[340276753,1728988152012,-650.42,0.00044273,60]
[340276754,1728988152043,-547.53288023,0.00044273,60]
[340276755,1728988152084,-500.0,0.00044273,60]
[340276756,1728988152112,-535.55517128,0.00044273,60]
[340276757,1728988152248,-500.0,0.00044273,60]
[340276758,1728988152276,-608.56119414,0.00044273,60]
[340276759,1728988152304,-500.0,0.00044273,60]
[340276760,1728988152330,-565.69173937,0.00044273,60]
[340276761,1728988152358,-200.0,0.00044273,7]